fUSD/lending_fUSD_20251204
["ID","MTS","AMOUNT","RATE_DAILY","PERIOD"]
[396233606,1764852639885,-150.0,0.00016533,2]
[396233607,1764852639894,-150.0,0.00016562,2]
[396233608,1764852639904,-151.0,0.0001659,2]
[396233609,1764852639914,-150.0,0.00016594,2]
[396233610,1764852639923,-2816.2066,0.000166,2]
[396233611,1764852639933,-1000.0,0.000166,2]
[396233612,1764852639942,-150.99,0.000166,2]
[396233613,1764852639955,-7679.185,0.000166,2]
[396233614,1764852639965,-11762.42367197,0.000166,2]
[396233615,1764852639975,-2500.0,0.000166,2]
[396233616,1764852639986,-150.0,0.00016609,2]
[396233617,1764852639997,-3185.0,0.00016645,2]
[396233618,1764852640007,-150.0,0.00016647,2]
[396233619,1764852640017,-150.0,0.00016647,2]
[396233620,1764852640026,-150.0,0.0001666,2]
[396233621,1764852640035,-3185.0,0.00016668,2]
[396233622,1764852640045,-150.0,0.00016677,2]
[396233623,1764852640055,-250.0,0.00016681,2]
[396233624,1764852640065,-2551.23517802,0.00016681,2]
[396233625,1764852640075,-500.0,0.0001669,2]
[396233626,1764852640085,-500.0,0.0001669,2]
[396233627,1764852640095,-500.0,0.0001669,2]
[396233628,1764852640104,-500.0,0.0001669,2]
[396233629,1764852640114,-500.0,0.0001669,2]
[396233630,1764852640123,-500.0,0.0001669,2]
[396233631,1764852640133,-200.0,0.0001669,2]
[396233632,1764852640142,-276.61216853,0.0001669,2]
[396233656,1764852640375,-500.0,0.0001669,2]
[396233658,1764852640385,-200.0,0.0001669,2]
[396233660,1764852640394,-500.0,0.0001669,2]
[396233662,1764852640403,-151.0,0.0001669,2]
[396233664,1764852640412,-151.0,0.0001669,2]
[396233666,1764852640422,-151.0,0.0001669,2]
[396233668,1764852640431,-151.0,0.0001669,2]
[396233670,1764852640441,-151.0,0.0001669,2]
[396233672,1764852640452,-151.0,0.0001669,2]
[396233674,1764852640466,-151.0,0.0001669,2]
[396233676,1764852640476,-151.0,0.0001669,2]
[396233678,1764852640486,-151.0,0.0001669,2]
[396233680,1764852640495,-151.0,0.0001669,2]
[396233682,1764852640505,-151.0,0.0001669,2]
[396233685,1764852640516,-20261.20829054,0.00016694,2]
[396233686,1764852640526,-542.39133865,0.00016699,2]
[396233689,1764852640536,-500.0,0.00016699,2]
[396233691,1764852640545,-500.0,0.00016699,2]
[396233693,1764852640554,-500.0,0.00016699,2]
[396233694,1764852640562,-500.0,0.00016699,2]
[396233696,1764852640572,-500.0,0.00016699,2]
[396233698,1764852640582,-500.0,0.00016699,2]
[396233699,1764852640591,-500.0,0.00016699,2]
[396233700,1764852640600,-500.0,0.00016699,2]
[396233701,1764852640609,-508.88875965,0.00016699,2]
[396233702,1764852640618,-500.0,0.00016699,2]
[396233703,1764852640628,-500.0,0.00016699,2]
[396233704,1764852640637,-500.0,0.00016699,2]
[396233705,1764852640647,-510.42176971,0.00016699,2]
[396233706,1764852640656,-500.0,0.00016699,2]
[396233707,1764852640665,-500.0,0.00016699,2]
[396233708,1764852640683,-500.0,0.00016699,2]
[396233709,1764852640694,-500.0,0.00016699,2]
[396233710,1764852640704,-500.0,0.00016699,2]
[396233711,1764852640713,-500.0,0.00016699,2]
[396233712,1764852640723,-500.0,0.00016699,2]
[396233713,1764852640732,-500.0,0.00016699,2]
[396233714,1764852640742,-500.0,0.00016699,2]
[396233715,1764852640751,-500.0,0.00016699,2]
[396233716,1764852640761,-500.0,0.00016699,2]
[396233717,1764852640771,-633.1662201,0.00016699,2]
[396233718,1764852640780,-508.47578243,0.00016699,2]
[396233719,1764852640790,-500.0,0.00016699,2]
[396233720,1764852640799,-506.8421196,0.00016699,2]
[396233721,1764852640808,-176.30602909,0.000167,2]
[396233722,1764852640818,-600.0,0.000167,2]
[396233723,1764852640827,-3185.0,0.00016714,2]
[396233724,1764852640836,-3185.0,0.00016719,2]
[396233725,1764852640846,-150.0,0.00016725,2]
[396233727,1764852640855,-150.0,0.00016744,2]
[396233729,1764852640865,-150.0,0.0001676,2]
[396233731,1764852640874,-1704.3053,0.00016767,2]
[396233733,1764852640883,-1000.0,0.0001679,2]
[396233735,1764852640892,-150.0,0.0001679,2]
[396233737,1764852640903,-150.0,0.00016798,2]
[396233739,1764852640913,-11762.42367188,0.0001683,2]
[396233741,1764852640923,-150.0,0.00016832,2]
[396233743,1764852640933,-3185.0,0.00016836,2]
[396233745,1764852640942,-150.0,0.00016856,2]
[396233747,1764852640952,-200.0,0.00016864,2]
[396233750,1764852640961,-199.87,0.00016866,2]
[396233752,1764852640970,-913.03063143,0.00016869,2]
[396233754,1764852640980,-150.0,0.00016873,2]
[396233756,1764852640989,-166.66,0.00016889,2]
[396233758,1764852640999,-500.0,0.00016889,2]
[396233760,1764852641008,-500.0,0.00016889,2]
[396233762,1764852641017,-508.89126024,0.00016889,2]
[396233764,1764852641027,-500.0,0.00016889,2]
[396233766,1764852641036,-512.90563522,0.00016889,2]
[396233768,1764852641046,-500.0,0.00016889,2]
[396233770,1764852641055,-1639.25827028,0.00016899,2]
[396233772,1764852641064,-176.30602909,0.00016899,2]
[396233774,1764852641074,-425.53463472,0.00016899,2]
[396233776,1764852641083,-500.0,0.00016899,2]
[396233778,1764852641092,-462.71188206,0.00016899,2]
[396233780,1764852641101,-694.85218318,0.00016899,2]
[396233782,1764852641110,-500.0,0.00016899,2]
[396233784,1764852641120,-694.85218318,0.00016899,2]
[396233786,1764852641129,-500.0,0.00016899,2]
[396233788,1764852641138,-694.85218318,0.00016899,2]
[396233790,1764852641148,-500.0,0.00016899,2]
[396233792,1764852641158,-694.85218318,0.00016899,2]
[396233794,1764852641168,-500.0,0.00016899,2]
[396233796,1764852641177,-694.85218318,0.00016899,2]
[396233798,1764852641187,-500.0,0.00016899,2]
[396233800,1764852641196,-694.85218318,0.00016899,2]
[396233802,1764852641206,-500.0,0.00016899,2]
[396233804,1764852641215,-694.85218318,0.00016899,2]
[396233806,1764852641224,-500.0,0.00016899,2]
[396233808,1764852641234,-694.85218318,0.00016899,2]
[396233810,1764852641243,-500.0,0.00016899,2]
[396233812,1764852641252,-694.85218318,0.00016899,2]
[396233814,1764852641262,-500.0,0.00016899,2]
[396233816,1764852641271,-694.85218318,0.00016899,2]
[396233818,1764852641280,-694.85218318,0.00016899,2]
[396233820,1764852641290,-694.85218318,0.00016899,2]
[396233822,1764852641299,-500.0,0.00016899,2]
[396233824,1764852641309,-694.85218318,0.00016899,2]
[396233826,1764852641318,-500.0,0.00016899,2]
[396233828,1764852641328,-694.85218318,0.00016899,2]
[396233830,1764852641338,-694.85218318,0.00016899,2]
[396233832,1764852641348,-500.0,0.00016899,2]
[396233834,1764852641357,-694.85218318,0.00016899,2]
[396233836,1764852641366,-500.0,0.00016899,2]
[396233838,1764852641375,-694.85218318,0.00016899,2]
[396233841,1764852641386,-694.85218318,0.00016899,2]
[396233843,1764852641395,-500.0,0.00016899,2]
[396233845,1764852641405,-694.85218318,0.00016899,2]
[396233847,1764852641414,-500.0,0.00016899,2]
[396233849,1764852641423,-694.85218318,0.00016899,2]
[396233851,1764852641433,-500.0,0.00016899,2]
[396233853,1764852641442,-694.85218318,0.00016899,2]
[396233855,1764852641452,-500.0,0.00016899,2]
[396233857,1764852641466,-694.85218318,0.00016899,2]
[396233859,1764852641476,-500.0,0.00016899,2]
[396233861,1764852641485,-200.0,0.00016899,2]
[396233863,1764852641495,-694.85218318,0.00016899,2]
[396233865,1764852641507,-694.85218318,0.00016899,2]
[396233867,1764852641516,-500.0,0.00016899,2]
[396233869,1764852641526,-694.85218318,0.00016899,2]
[396233871,1764852641536,-500.0,0.00016899,2]
[396233873,1764852641546,-694.85218318,0.00016899,2]
[396233876,1764852641556,-694.85218318,0.00016899,2]
[396233877,1764852641566,-500.0,0.00016899,2]
[396233880,1764852641576,-694.85218318,0.00016899,2]
[396233882,1764852641588,-694.85218318,0.00016899,2]
[396233884,1764852641597,-500.0,0.00016899,2]
[396233886,1764852641606,-694.85218318,0.00016899,2]
[396233888,1764852641617,-694.85218318,0.00016899,2]
[396233890,1764852641627,-694.85218318,0.00016899,2]
[396233892,1764852641636,-694.85218318,0.00016899,2]
[396233894,1764852641646,-694.85218318,0.00016899,2]
[396233896,1764852641655,-694.85218318,0.00016899,2]
[396233898,1764852641665,-694.85218318,0.00016899,2]
[396233900,1764852641674,-694.85218318,0.00016899,2]
[396233902,1764852641683,-694.85218318,0.00016899,2]
[396233904,1764852641693,-694.85218318,0.00016899,2]
[396233906,1764852641703,-694.85218318,0.00016899,2]
[396233908,1764852641712,-694.85218318,0.00016899,2]
[396233910,1764852641721,-694.85218318,0.00016899,2]
[396233912,1764852641731,-694.85218318,0.00016899,2]
[396233914,1764852641739,-694.85218318,0.00016899,2]
[396233916,1764852641749,-694.85218318,0.00016899,2]
[396233918,1764852641758,-694.85218318,0.00016899,2]
[396233920,1764852641767,-694.85218318,0.00016899,2]
[396233922,1764852641776,-694.85218318,0.00016899,2]
[396233924,1764852641785,-694.85218318,0.00016899,2]
[396233926,1764852641795,-694.85218318,0.00016899,2]
[396233928,1764852641804,-694.85218318,0.00016899,2]
[396233930,1764852641813,-694.85218318,0.00016899,2]
[396233932,1764852641822,-694.85218318,0.00016899,2]
[396233934,1764852641833,-694.85218318,0.00016899,2]
[396233936,1764852641842,-694.85218318,0.00016899,2]
[396233938,1764852641851,-694.85218318,0.00016899,2]
[396233940,1764852641860,-10000.0,0.000169,2]
[396233942,1764852641870,-463.98287805,0.000169,2]
[396233944,1764852641879,-294.17220386,0.000169,2]
[396233946,1764852641888,-829.58344226,0.000169,2]
[396233948,1764852641898,-212.18028746,0.000169,2]
[396233950,1764852641909,-4322.30927027,0.000169,2]
[396233952,1764852641918,-540.96467584,0.000169,2]
[396233954,1764852641927,-150.0,0.00016921,2]
[396233956,1764852641936,-306.0,0.00016933,2]
[396233958,1764852641945,-3185.0,0.00016939,2]
[396233960,1764852641955,-598.94895177,0.00016973,2]
[396233962,1764852641963,-500.0,0.00016973,2]
[396233964,1764852641972,-505.52202945,0.00016983,2]
[396233966,1764852641982,-369.0,0.00016986,2]
[396233968,1764852641991,-162.07402589,0.00016986,2]
[396233970,1764852642001,-214.91339318,0.00016986,2]
[396233972,1764852642009,-221.35498137,0.00016986,2]
[396233974,1764852642018,-291.31806911,0.00016986,2]
[396233976,1764852642027,-244.30876623,0.00016986,2]
[396233978,1764852642036,-178.21088256,0.00016986,2]
[396233980,1764852642046,-284.6935188,0.00016986,2]
[396233982,1764852642055,-156.13124317,0.00016986,2]
[396233984,1764852642065,-224.42927354,0.00016986,2]
[396233986,1764852642074,-20261.20829054,0.00016987,2]
[396233988,1764852642084,-500.0,0.00016988,2]
[396233990,1764852642093,-526.37357551,0.00016988,2]
[396233992,1764852642102,-500.0,0.00016988,2]
[396233994,1764852642112,-500.0,0.00016988,2]
[396233996,1764852642121,-849.00757621,0.00016989,2]
[396233998,1764852642130,-1558.92,0.00016989,2]
[396234000,1764852642139,-849.00757621,0.0001699,2]
[396234002,1764852642148,-500.0,0.00016996,2]
[396234004,1764852642157,-500.0,0.00016998,2]
[396234006,1764852642166,-500.0,0.00016998,2]
[396234008,1764852642175,-500.0,0.00016998,2]
[396234010,1764852642185,-500.0,0.00016998,2]
[396234012,1764852642194,-500.0,0.00016998,2]
[396234014,1764852642204,-500.0,0.00016998,2]
[396234016,1764852642213,-517.06794092,0.00016998,2]
[396234018,1764852642223,-504.0861047,0.00016998,2]
[396234020,1764852642232,-8613.06467827,0.00016999,2]
[396234022,1764852642241,-3417.7201532,0.00016999,2]
[396234024,1764852642251,-512728.320325,0.00016999,2]
[396234026,1764852642260,-500.0,0.00016999,2]
[396234028,1764852642271,-500.0,0.00016999,2]
[396234030,1764852642280,-500.0,0.00016999,2]
[396234032,1764852642290,-300.0,0.00016999,2]
[396234034,1764852642299,-500.0,0.00016999,2]
[396234036,1764852642308,-500.0,0.00016999,2]
[396234038,1764852642317,-500.0,0.00016999,2]
[396234040,1764852642327,-500.0,0.00016999,2]
[396234042,1764852642338,-500.0,0.00016999,2]
[396234044,1764852642347,-500.0,0.00016999,2]
[396234046,1764852642358,-500.0,0.00016999,2]
[396234048,1764852642369,-500.0,0.00016999,2]
[396234050,1764852642379,-500.0,0.00016999,2]
[396234052,1764852642389,-486.54272582,0.00016999,2]
[396234054,1764852642398,-500.0,0.00016999,2]
[396234056,1764852642408,-500.0,0.00016999,2]
[396234058,1764852642417,-500.0,0.00016999,2]
[396234060,1764852642426,-500.0,0.00016999,2]
[396234062,1764852642436,-367.11961321,0.00016999,2]
[396234064,1764852642446,-126651.4011025,0.00016999,2]
[396234066,1764852642456,-3409.0123893,0.00016999,2]
[396234069,1764852642469,-500.0,0.00016999,2]
[396234070,1764852642479,-500.0,0.00016999,2]
[396234072,1764852642488,-500.0,0.00016999,2]
[396234075,1764852642498,-500.0,0.00016999,2]
[396234077,1764852642508,-500.0,0.00016999,2]
[396234079,1764852642517,-500.0,0.00016999,2]
[396234080,1764852642527,-225.57389364,0.00016999,2]
[396234082,1764852642536,-300.0,0.00016999,2]
[396234084,1764852642546,-300.0,0.00016999,2]
[396234086,1764852642556,-300.0,0.00016999,2]
[396234089,1764852642566,-1050194.1174332,0.00017,2]
[396234090,1764852642575,-888592.00334624,0.00017,2]
[396234121,1764852642855,-5536.33249366,0.00017,2]
[396234213,1764852644048,-585.72078452,0.00017,2]
[396234214,1764852644215,-277.92596841,0.00017,2]
[396234215,1764852644227,-766.66,0.00017,2]
[396234217,1764852645502,-543.69048367,0.00017,2]
[396234219,1764852645722,-348922.59711535,0.00017,2]
[396234220,1764852645776,-673714.79298083,0.00017,2]
[396234221,1764852645786,-250.0,0.00017,2]
[396234222,1764852645795,-2000.0,0.00017,2]
[396234223,1764852645804,-200.0,0.00017,2]
[396234224,1764852645814,-151.0,0.00017,2]
[396234225,1764852645824,-151.0,0.00017,2]
[396234227,1764852645834,-151.0,0.00017,2]
[396234229,1764852645843,-151.0,0.00017,2]
[396234230,1764852645852,-151.0,0.00017,2]
[396234231,1764852645862,-151.0,0.00017,2]
[396234232,1764852645872,-152.79718,0.00017,2]
[396234233,1764852645883,-200.0,0.00017,2]
[396234234,1764852645892,-244.04966817,0.00017,2]
[396234235,1764852645902,-156.833009,0.00017,2]
[396234236,1764852645911,-151.0,0.00017,2]
[396234237,1764852645925,-151.0,0.00017,2]
[396234238,1764852645936,-151.0,0.00017,2]
[396234240,1764852645945,-151.0,0.00017,2]
[396234242,1764852645954,-159.119748,0.00017,2]
[396234244,1764852645963,-151.0,0.00017,2]
[396234246,1764852645972,-151.0,0.00017,2]
[396234248,1764852645981,-151.0,0.00017,2]
[396234250,1764852645991,-151.0,0.00017,2]
[396234251,1764852646001,-151.0,0.00017,2]
[396234253,1764852646010,-189.655408,0.00017,2]
[396234255,1764852646020,-151.0,0.00017,2]
[396234257,1764852646031,-151.0,0.00017,2]
[396234259,1764852646040,-152.412375,0.00017,2]
[396234261,1764852646050,-151.0,0.00017,2]
[396234263,1764852646060,-209.557783,0.00017,2]
[396234265,1764852646069,-1000.0,0.00017,2]
[396234267,1764852646078,-323.82955564,0.00017,2]
[396234269,1764852646090,-151.0,0.00017,2]
[396234270,1764852646100,-151.0,0.00017,2]
[396234271,1764852646115,-168.0,0.00017027,2]
[396234272,1764852646124,-829.34,0.0001706,2]
[396234273,1764852646134,-11762.42367188,0.0001706,2]
[396234274,1764852646144,-168.0,0.00017119,2]
[396234275,1764852646153,-500.0,0.00017127,2]
[396234276,1764852646163,-150.0,0.00017127,2]
[396234277,1764852646173,-150.0,0.00017127,2]
[396234278,1764852646182,-500.0,0.00017127,2]
[396234279,1764852646192,-500.0,0.00017127,2]
[396234280,1764852646202,-152.22695775,0.00017127,2]
[396234281,1764852646211,-500.0,0.00017127,2]
[396234282,1764852646221,-500.0,0.00017127,2]
[396234283,1764852646231,-159.18371702,0.00017127,2]
[396234284,1764852646240,-500.0,0.00017127,2]
[396234285,1764852646250,-150.0,0.00017127,2]
[396234286,1764852646259,-500.0,0.00017127,2]
[396234287,1764852646269,-154.70817097,0.00017127,2]
[396234288,1764852646278,-150.0,0.00017127,2]
[396234289,1764852646288,-157.31329574,0.00017127,2]
[396234290,1764852646298,-150.0,0.00017127,2]
[396234291,1764852646312,-150.0,0.00017127,2]
[396234292,1764852646322,-150.0,0.00017127,2]
[396234293,1764852646332,-500.0,0.00017127,2]
[396234294,1764852646343,-500.0,0.00017127,2]
[396234295,1764852646353,-500.0,0.00017127,2]
[396234296,1764852646363,-500.0,0.00017127,2]
[396234297,1764852646373,-150.0,0.00017127,2]
[396234298,1764852646383,-150.0,0.00017127,2]
[396234299,1764852646394,-500.0,0.00017127,2]
[396234300,1764852646404,-500.0,0.00017127,2]
[396234301,1764852646414,-500.0,0.00017127,2]
[396234302,1764852646425,-150.0,0.00017127,2]
[396234303,1764852646434,-500.0,0.00017127,2]
[396234304,1764852646446,-500.0,0.00017127,2]
[396234305,1764852646455,-150.0,0.00017127,2]
[396234306,1764852646466,-500.0,0.00017127,2]
[396234307,1764852646479,-448.0,0.00017127,2]
[396234308,1764852646489,-150.0,0.00017127,2]
[396234309,1764852646502,-500.0,0.00017127,2]
[396234310,1764852646514,-150.0,0.00017127,2]
[396234311,1764852646523,-584.0,0.00017127,2]
[396234312,1764852646533,-151.0,0.00017138,2]
[396234313,1764852646543,-1250.18099112,0.0001717,2]
[396234314,1764852646553,-200.0,0.0001717,2]
[396234315,1764852646563,-200.0,0.0001717,2]
[396234316,1764852646572,-3185.0,0.00017197,2]
[396234317,1764852646582,-600.0,0.00017248,2]
[396234318,1764852646592,-1558.92,0.00017263,2]
[396234319,1764852646602,-500.0,0.00017264,2]
[396234320,1764852646612,-150.29710488,0.00017264,2]
[396234321,1764852646622,-150.0,0.00017264,2]
[396234322,1764852646632,-525.24710959,0.00017264,2]
[396234323,1764852646641,-500.0,0.00017264,2]
[396234324,1764852646651,-553.46486133,0.00017264,2]
[396234325,1764852646661,-520.92068859,0.00017264,2]
[396234326,1764852646670,-500.0,0.00017264,2]
[396234327,1764852646680,-150.0,0.00017264,2]
[396234328,1764852646690,-500.0,0.00017264,2]
[396234329,1764852646702,-150.0,0.00017264,2]
[396234330,1764852646711,-150.0,0.00017264,2]
[396234331,1764852646720,-150.0,0.00017264,2]
[396234332,1764852646731,-150.0,0.00017264,2]
[396234333,1764852646741,-500.0,0.00017264,2]
[396234334,1764852646751,-500.0,0.00017264,2]
[396234335,1764852646762,-500.0,0.00017264,2]
[396234336,1764852646772,-500.0,0.00017264,2]
[396234337,1764852646784,-150.0,0.00017264,2]
[396234338,1764852646794,-171.25851305,0.00017264,2]
[396234339,1764852646804,-500.0,0.00017264,2]
[396234340,1764852646814,-500.0,0.00017264,2]
[396234341,1764852646824,-500.0,0.00017264,2]
[396234342,1764852646835,-500.0,0.00017264,2]
[396234343,1764852646844,-500.0,0.00017264,2]
[396234344,1764852646854,-500.0,0.00017264,2]
[396234345,1764852646864,-448.0,0.00017264,2]
[396234346,1764852646874,-500.0,0.00017264,2]
[396234347,1764852646884,-584.0,0.00017264,2]
[396234348,1764852646894,-500.0,0.00017274,2]
[396234349,1764852646904,-20261.20829054,0.00017281,2]
[396234350,1764852646914,-165.24,0.00017286,2]
[396234351,1764852646924,-11762.42367188,0.0001729,2]
[396234352,1764852646934,-3185.0,0.00017292,2]
[396234353,1764852646944,-200.0,0.00017342,2]
[396234354,1764852646954,-200.0,0.00017342,2]
[396234355,1764852646964,-500.0,0.00017401,2]
[396234356,1764852646973,-155.60555311,0.00017401,2]
[396234357,1764852646983,-500.0,0.00017401,2]
[396234358,1764852646993,-500.0,0.00017401,2]
[396234359,1764852647003,-150.0,0.00017401,2]
[396234360,1764852647013,-500.0,0.00017401,2]
[396234361,1764852647023,-150.0,0.00017401,2]
[396234362,1764852647033,-150.0,0.00017401,2]
[396234363,1764852647042,-252.75874584,0.00017401,2]
[396234364,1764852647052,-150.0,0.00017401,2]
[396234365,1764852647061,-201.74937325,0.00017401,2]
[396234366,1764852647071,-500.0,0.00017401,2]
[396234367,1764852647088,-500.0,0.00017401,2]
[396234368,1764852647100,-500.0,0.00017401,2]
[396234369,1764852647110,-284.66758236,0.00017401,2]
[396234370,1764852647120,-500.0,0.00017401,2]
[396234371,1764852647130,-500.0,0.00017401,2]
[396234372,1764852647140,-500.0,0.00017401,2]
[396234373,1764852647150,-500.0,0.00017401,2]
[396234374,1764852647160,-500.0,0.00017401,2]
[396234375,1764852647171,-500.0,0.00017401,2]
[396234376,1764852647182,-448.0,0.00017401,2]
[396234377,1764852647193,-504.69767392,0.00017401,2]
[396234378,1764852647203,-584.0,0.00017401,2]
[396234379,1764852647214,-500.0,0.00017411,2]
[396234380,1764852647224,-168.0,0.00017417,2]
[396234381,1764852647234,-166.66,0.00017429,2]
[396234382,1764852647243,-200.0,0.00017515,2]
[396234383,1764852647254,-200.0,0.00017515,2]
[396234384,1764852647264,-11762.42367188,0.0001752,2]
[396234385,1764852647275,-1558.92,0.00017537,2]
[396234386,1764852647285,-500.0,0.00017538,2]
[396234387,1764852647295,-549.07364909,0.00017538,2]
[396234388,1764852647305,-500.0,0.00017538,2]
[396234389,1764852647316,-168.06020115,0.00017538,2]
[396234390,1764852647327,-158.53919726,0.00017538,2]
[396234391,1764852647338,-157.55796865,0.00017538,2]
[396234392,1764852647348,-155.06798198,0.00017538,2]
[396234393,1764852647358,-150.0,0.00017538,2]
[396234394,1764852647368,-500.0,0.00017538,2]
[396234395,1764852647378,-434.6189766,0.00017538,2]
[396234396,1764852647388,-500.0,0.00017538,2]
[396234397,1764852647398,-500.0,0.00017538,2]
[396234398,1764852647408,-500.0,0.00017538,2]
[396234399,1764852647417,-500.0,0.00017538,2]
[396234400,1764852647428,-500.0,0.00017538,2]
[396234401,1764852647438,-500.0,0.00017538,2]
[396234402,1764852647448,-500.0,0.00017538,2]
[396234403,1764852647458,-448.0,0.00017538,2]
[396234404,1764852647472,-584.0,0.00017538,2]
[396234405,1764852647482,-171.62917481,0.00017548,2]
[396234406,1764852647492,-3185.0,0.00017563,2]
[396234407,1764852647502,-20261.20829054,0.00017574,2]
[396234408,1764852647521,-3185.0,0.00017618,2]
[396234409,1764852647538,-510.31429567,0.00017675,2]
[396234410,1764852647552,-536.50520671,0.00017675,2]
[396234411,1764852647563,-150.0,0.00017675,2]
[396234412,1764852647574,-500.0,0.00017675,2]
[396234413,1764852647584,-500.0,0.00017675,2]
[396234414,1764852647594,-500.0,0.00017675,2]
[396234415,1764852647605,-500.0,0.00017675,2]
[396234416,1764852647615,-500.0,0.00017675,2]
[396234417,1764852647626,-500.0,0.00017675,2]
[396234418,1764852647637,-500.0,0.00017675,2]
[396234419,1764852647651,-500.0,0.00017675,2]
[396234420,1764852647661,-448.0,0.00017675,2]
[396234421,1764852647671,-584.0,0.00017675,2]
[396234422,1764852647682,-3185.0,0.00017687,2]
[396234423,1764852647692,-200.0,0.0001769,2]
[396234424,1764852647702,-200.0,0.0001769,2]
[396234425,1764852647712,-168.0,0.00017721,2]
[396234426,1764852647723,-11762.42367188,0.00017751,2]
[396234427,1764852647733,-3185.0,0.00017772,2]
[396234428,1764852647743,-600.0,0.00017796,2]
[396234429,1764852647753,-150.0,0.00017808,2]
[396234430,1764852647763,-1558.92,0.00017811,2]
[396234431,1764852647774,-229.05941083,0.00017812,2]
[396234432,1764852647784,-500.0,0.00017812,2]
[396234433,1764852647794,-541.50339191,0.00017812,2]
[396234434,1764852647803,-500.0,0.00017812,2]
[396234435,1764852647813,-500.0,0.00017812,2]
[396234436,1764852647823,-500.0,0.00017812,2]
[396234437,1764852647834,-500.0,0.00017812,2]
[396234438,1764852647843,-463.55349695,0.00017812,2]
[396234439,1764852647853,-500.0,0.00017812,2]
[396234440,1764852647863,-448.0,0.00017812,2]
[396234441,1764852647873,-584.0,0.00017812,2]
[396234442,1764852647883,-20261.20829054,0.00017868,2]
[396234443,1764852647893,-3185.0,0.00017872,2]
[396234444,1764852647903,-3185.0,0.00017877,2]
[396234445,1764852647912,-150.0,0.00017945,2]
[396234446,1764852647922,-500.0,0.00017949,2]
[396234447,1764852647932,-500.0,0.00017949,2]
[396234448,1764852647946,-500.0,0.00017949,2]
[396234449,1764852647955,-500.0,0.00017949,2]
[396234450,1764852647965,-500.0,0.00017949,2]
[396234451,1764852647975,-500.0,0.00017949,2]
[396234452,1764852647985,-448.0,0.00017949,2]
[396234453,1764852647994,-584.0,0.00017949,2]
[396234454,1764852648004,-3185.0,0.00017954,2]
[396234455,1764852648013,-3185.0,0.00017963,2]
[396234456,1764852648023,-166.66,0.00017968,2]
[396234457,1764852648033,-3185.0,0.00017976,2]
[396234458,1764852648043,-11762.42367188,0.00017981,2]
[396234459,1764852648053,-366.26941,0.00018,2]
[396234460,1764852648062,-3185.0,0.00018021,2]
[396234461,1764852648072,-3185.0,0.00018054,2]
[396234462,1764852648082,-3185.0,0.00018071,2]
[396234463,1764852648092,-150.0,0.00018082,2]
[396234464,1764852648101,-818.77,0.00018082,2]
[396234465,1764852648111,-1558.92,0.00018085,2]
[396234466,1764852648121,-500.0,0.00018086,2]
[396234467,1764852648130,-500.0,0.00018086,2]
[396234468,1764852648140,-500.0,0.00018086,2]
[396234469,1764852648149,-500.0,0.00018086,2]
[396234470,1764852648160,-500.0,0.00018086,2]
[396234471,1764852648170,-500.0,0.00018086,2]
[396234472,1764852648179,-448.0,0.00018086,2]
[396234473,1764852648190,-584.0,0.00018086,2]